{"text_format":"3","workbook":"xlsx","n_sheets":1,"sheets":["Winst- en verliesrekening"],"not_rendered":{"defined_names":2},"read":"whole","date_system":"1900"}

{"sheet":"Winst- en verliesrekening","index":0,"n_rows":60,"n_cols":10,"rows_kept":60,"merged":[[9,1,9,9],[16,1,16,9],[24,1,24,9],[38,1,38,9],[43,1,43,9],[56,1,56,9]]}
[null,"Winst en verliesAfschrift"]
[]
[{"$nulls":3},"VORIGE PERIODE ","BUDGET ","HUIDIGE PERIODE ",null,"HUIDIGE PERIODE ALS % VAN VERKOOP","% WIJZIGING TOV VORIGE PERIODE ","% AFWIJKING VAN BUDGET "]
[null,"Verkoopinkomsten"]
[null,"Product/service 1",null,40,50,45,null,{"$f":"IFERROR(Verkoopinkomsten[[#This Row],[Huidige periode]]/SUBTOTAL(109,Verkoopinkomsten[Huidige periode]),0)","v":{"v":1,"d":"100.0%"}},{"$f":"IFERROR(Verkoopinkomsten[[#This Row],[Huidige periode]]/Verkoopinkomsten[[#This Row],[Vorige periode]]-1,0)","v":{"v":0.125,"d":"12.5%"}},{"$f":"IFERROR(Verkoopinkomsten[[#This Row],[Huidige periode]]/Verkoopinkomsten[[#This Row],[Budget]]-1,0)","v":{"v":-0.09999999999999998,"d":"-10.0%"}}]
[null,"Product/service 2",{"$nulls":5},{"$f":"IFERROR(Verkoopinkomsten[[#This Row],[Huidige periode]]/SUBTOTAL(109,Verkoopinkomsten[Huidige periode]),0)","v":0},{"$f":"IFERROR(Verkoopinkomsten[[#This Row],[Huidige periode]]/Verkoopinkomsten[[#This Row],[Vorige periode]]-1,0)","v":0},{"$f":"IFERROR(Verkoopinkomsten[[#This Row],[Huidige periode]]/Verkoopinkomsten[[#This Row],[Budget]]-1,0)","v":0}]
[null,"Product/service 3",{"$nulls":5},{"$f":"IFERROR(Verkoopinkomsten[[#This Row],[Huidige periode]]/SUBTOTAL(109,Verkoopinkomsten[Huidige periode]),0)","v":0},{"$f":"IFERROR(Verkoopinkomsten[[#This Row],[Huidige periode]]/Verkoopinkomsten[[#This Row],[Vorige periode]]-1,0)","v":0},{"$f":"IFERROR(Verkoopinkomsten[[#This Row],[Huidige periode]]/Verkoopinkomsten[[#This Row],[Budget]]-1,0)","v":0}]
[null,"Product/service 4",{"$nulls":5},{"$f":"IFERROR(Verkoopinkomsten[[#This Row],[Huidige periode]]/SUBTOTAL(109,Verkoopinkomsten[Huidige periode]),0)","v":0},{"$f":"IFERROR(Verkoopinkomsten[[#This Row],[Huidige periode]]/Verkoopinkomsten[[#This Row],[Vorige periode]]-1,0)","v":0},{"$f":"IFERROR(Verkoopinkomsten[[#This Row],[Huidige periode]]/Verkoopinkomsten[[#This Row],[Budget]]-1,0)","v":0}]
[null,"Totaal",null,{"$f":"SUBTOTAL(109,Verkoopinkomsten[Vorige periode])","v":40},{"$f":"SUBTOTAL(109,Verkoopinkomsten[Budget])","v":50},{"$f":"SUBTOTAL(109,Verkoopinkomsten[Huidige periode])","v":45},null,{"$f":"IFERROR(Verkoopinkomsten[[#Totals],[Huidige periode]]/Verkoopinkomsten[[#Totals],[Huidige periode]],0)","v":{"v":1,"d":"100.0%"}},{"$f":"IFERROR(Verkoopinkomsten[[#Totals],[Huidige periode]]/Verkoopinkomsten[[#Totals],[Vorige periode]]-1,0)","v":{"v":0.125,"d":"12.5%"}},{"$f":"SUBTOTAL(109,Verkoopinkomsten[% afwijking van budget])","v":{"v":-0.09999999999999998,"d":"-10.0%"}}]
[]
[null,"Verkoopkosten"]
[null,"Product/service 1",null,null,2,3,null,{"$f":"IFERROR(Verkoopkosten[[#This Row],[Huidige periode]]/SUBTOTAL(109,Verkoopinkomsten[Huidige periode]),0)","v":{"v":0.06666666666666667,"d":"6.7%"}},{"$f":"IFERROR(Verkoopkosten[[#This Row],[Huidige periode]]/Verkoopkosten[[#This Row],[Vorige periode]]-1,0)","v":0},{"$f":"IFERROR(Verkoopkosten[[#This Row],[Huidige periode]]/Verkoopkosten[[#This Row],[Budget]]-1,0)","v":{"v":0.5,"d":"50.0%"}}]
[null,"Product/service 2",null,null,5,3,null,{"$f":"IFERROR(Verkoopkosten[[#This Row],[Huidige periode]]/SUBTOTAL(109,Verkoopinkomsten[Huidige periode]),0)","v":{"v":0.06666666666666667,"d":"6.7%"}},{"$f":"IFERROR(Verkoopkosten[[#This Row],[Huidige periode]]/Verkoopkosten[[#This Row],[Vorige periode]]-1,0)","v":0},{"$f":"IFERROR(Verkoopkosten[[#This Row],[Huidige periode]]/Verkoopkosten[[#This Row],[Budget]]-1,0)","v":{"v":-0.4,"d":"-40.0%"}}]
[null,"Product/service 3",{"$nulls":3},1,null,{"$f":"IFERROR(Verkoopkosten[[#This Row],[Huidige periode]]/SUBTOTAL(109,Verkoopinkomsten[Huidige periode]),0)","v":{"v":0.022222222222222223,"d":"2.2%"}},{"$f":"IFERROR(Verkoopkosten[[#This Row],[Huidige periode]]/Verkoopkosten[[#This Row],[Vorige periode]]-1,0)","v":0},{"$f":"IFERROR(Verkoopkosten[[#This Row],[Huidige periode]]/Verkoopkosten[[#This Row],[Budget]]-1,0)","v":0}]
[null,"Product/service 4",{"$nulls":5},{"$f":"IFERROR(Verkoopkosten[[#This Row],[Huidige periode]]/SUBTOTAL(109,Verkoopinkomsten[Huidige periode]),0)","v":0},{"$f":"IFERROR(Verkoopkosten[[#This Row],[Huidige periode]]/Verkoopkosten[[#This Row],[Vorige periode]]-1,0)","v":0},{"$f":"IFERROR(Verkoopkosten[[#This Row],[Huidige periode]]/Verkoopkosten[[#This Row],[Budget]]-1,0)","v":0}]
[null,"Totaal",null,{"$f":"SUBTOTAL(109,Verkoopkosten[Vorige periode])","v":0},{"$f":"SUBTOTAL(109,Verkoopkosten[Budget])","v":7},{"$f":"SUBTOTAL(109,Verkoopkosten[Huidige periode])","v":7},null,{"$f":"IFERROR(Verkoopkosten[[#Totals],[Huidige periode]]/SUBTOTAL(109,Verkoopinkomsten[Huidige periode]),0)","v":{"v":0.15555555555555556,"d":"15.6%"}},{"$f":"IFERROR(Verkoopkosten[[#Totals],[Huidige periode]]/Verkoopkosten[[#Totals],[Vorige periode]]-1,0)","v":0},{"$f":"IFERROR(Verkoopkosten[[#Totals],[Huidige periode]]/Verkoopkosten[[#Totals],[Budget]]-1,0)","v":0}]
[]
[null,"Brutowinst",null,{"$f":"SUM(Verkoopinkomsten[Vorige periode])-SUM(Verkoopkosten[Vorige periode])","v":40},{"$f":"SUM(Verkoopinkomsten[Budget])-SUM(Verkoopkosten[Budget])","v":43},{"$f":"SUM(Verkoopinkomsten[Huidige periode])-SUM(Verkoopkosten[Huidige periode])","v":38},null,{"$f":"IFERROR(F18/SUBTOTAL(109,Verkoopinkomsten[Huidige periode]),0)","v":{"v":0.8444444444444444,"d":"84.4%"}},{"$f":"IFERROR(F18/D18-1,0)","v":{"v":-0.050000000000000044,"d":"-5.0%"}},{"$f":"IFERROR(F18/E18-1,0)","v":{"v":-0.11627906976744184,"d":"-11.6%"}}]
[]
[null,"Bedrijfsuitgaven: verkoop en marketing"]
[null,"Reclame",null,null,22,19,null,{"$f":"IFERROR(VerkoopEnMarketing[[#This Row],[Huidige periode]]/SUBTOTAL(109,Verkoopinkomsten[Huidige periode]),0)","v":{"v":0.4222222222222222,"d":"42.2%"}},{"$f":"IFERROR(VerkoopEnMarketing[[#This Row],[Huidige periode]]/VerkoopEnMarketing[[#This Row],[Vorige periode]]-1,0)","v":0},{"$f":"IFERROR(VerkoopEnMarketing[[#This Row],[Huidige periode]]/VerkoopEnMarketing[[#This Row],[Budget]]-1,0)","v":{"v":-0.13636363636363635,"d":"-13.6%"}}]
[null,"Direct marketing",{"$nulls":5},{"$f":"IFERROR(VerkoopEnMarketing[[#This Row],[Huidige periode]]/SUBTOTAL(109,Verkoopinkomsten[Huidige periode]),0)","v":0},{"$f":"IFERROR(VerkoopEnMarketing[[#This Row],[Huidige periode]]/VerkoopEnMarketing[[#This Row],[Vorige periode]]-1,0)","v":0},{"$f":"IFERROR(VerkoopEnMarketing[[#This Row],[Huidige periode]]/VerkoopEnMarketing[[#This Row],[Budget]]-1,0)","v":0}]
[null,"Overige uitgaven (specificeren)",{"$nulls":5},{"$f":"IFERROR(VerkoopEnMarketing[[#This Row],[Huidige periode]]/SUBTOTAL(109,Verkoopinkomsten[Huidige periode]),0)","v":0},{"$f":"IFERROR(VerkoopEnMarketing[[#This Row],[Huidige periode]]/VerkoopEnMarketing[[#This Row],[Vorige periode]]-1,0)","v":0},{"$f":"IFERROR(VerkoopEnMarketing[[#This Row],[Huidige periode]]/VerkoopEnMarketing[[#This Row],[Budget]]-1,0)","v":0}]
[null,"Totaal",null,{"$f":"SUBTOTAL(109,VerkoopEnMarketing[Vorige periode])","v":0},{"$f":"SUBTOTAL(109,VerkoopEnMarketing[Budget])","v":22},{"$f":"SUBTOTAL(109,VerkoopEnMarketing[Huidige periode])","v":19},null,{"$f":"IFERROR(VerkoopEnMarketing[[#Totals],[Huidige periode]]/SUBTOTAL(109,Verkoopinkomsten[Huidige periode]),0)","v":{"v":0.4222222222222222,"d":"42.2%"}},null,{"$f":"SUBTOTAL(109,VerkoopEnMarketing[% afwijking van budget])","v":{"v":-0.13636363636363635,"d":"-13.6%"}}]
[]
[null,"Bedrijfsuitgaven: algemeen en administratie"]
[null,"Lonen en salarissen",null,null,56,51,null,{"$f":"IFERROR(AlgemeenEnAdministratief[[#This Row],[Huidige periode]]/SUBTOTAL(109,Verkoopinkomsten[Huidige periode]),0)","v":{"v":1.1333333333333333,"d":"113.3%"}},{"$f":"IFERROR(AlgemeenEnAdministratief[[#This Row],[Huidige periode]]/AlgemeenEnAdministratief[[#This Row],[Vorige periode]]-1,0)","v":0},{"$f":"IFERROR(AlgemeenEnAdministratief[[#This Row],[Huidige periode]]/AlgemeenEnAdministratief[[#This Row],[Budget]]-1,0)","v":{"v":-0.0892857142857143,"d":"-8.9%"}}]
[null,"Externe services",{"$nulls":5},{"$f":"IFERROR(AlgemeenEnAdministratief[[#This Row],[Huidige periode]]/SUBTOTAL(109,Verkoopinkomsten[Huidige periode]),0)","v":0},{"$f":"IFERROR(AlgemeenEnAdministratief[[#This Row],[Huidige periode]]/AlgemeenEnAdministratief[[#This Row],[Vorige periode]]-1,0)","v":0},{"$f":"IFERROR(AlgemeenEnAdministratief[[#This Row],[Huidige periode]]/AlgemeenEnAdministratief[[#This Row],[Budget]]-1,0)","v":0}]
[null,"Kantoorartikelen",{"$nulls":5},{"$f":"IFERROR(AlgemeenEnAdministratief[[#This Row],[Huidige periode]]/SUBTOTAL(109,Verkoopinkomsten[Huidige periode]),0)","v":0},{"$f":"IFERROR(AlgemeenEnAdministratief[[#This Row],[Huidige periode]]/AlgemeenEnAdministratief[[#This Row],[Vorige periode]]-1,0)","v":0},{"$f":"IFERROR(AlgemeenEnAdministratief[[#This Row],[Huidige periode]]/AlgemeenEnAdministratief[[#This Row],[Budget]]-1,0)","v":0}]
[null,"Maaltijden en ontspanning",{"$nulls":5},{"$f":"IFERROR(AlgemeenEnAdministratief[[#This Row],[Huidige periode]]/SUBTOTAL(109,Verkoopinkomsten[Huidige periode]),0)","v":0},{"$f":"IFERROR(AlgemeenEnAdministratief[[#This Row],[Huidige periode]]/AlgemeenEnAdministratief[[#This Row],[Vorige periode]]-1,0)","v":0},{"$f":"IFERROR(AlgemeenEnAdministratief[[#This Row],[Huidige periode]]/AlgemeenEnAdministratief[[#This Row],[Budget]]-1,0)","v":0}]
[null,"Huur",{"$nulls":5},{"$f":"IFERROR(AlgemeenEnAdministratief[[#This Row],[Huidige periode]]/SUBTOTAL(109,Verkoopinkomsten[Huidige periode]),0)","v":0},{"$f":"IFERROR(AlgemeenEnAdministratief[[#This Row],[Huidige periode]]/AlgemeenEnAdministratief[[#This Row],[Vorige periode]]-1,0)","v":0},{"$f":"IFERROR(AlgemeenEnAdministratief[[#This Row],[Huidige periode]]/AlgemeenEnAdministratief[[#This Row],[Budget]]-1,0)","v":0}]
[null,"Telefoon",{"$nulls":5},{"$f":"IFERROR(AlgemeenEnAdministratief[[#This Row],[Huidige periode]]/SUBTOTAL(109,Verkoopinkomsten[Huidige periode]),0)","v":0},{"$f":"IFERROR(AlgemeenEnAdministratief[[#This Row],[Huidige periode]]/AlgemeenEnAdministratief[[#This Row],[Vorige periode]]-1,0)","v":0},{"$f":"IFERROR(AlgemeenEnAdministratief[[#This Row],[Huidige periode]]/AlgemeenEnAdministratief[[#This Row],[Budget]]-1,0)","v":0}]
[null,"Gas, water, elektra",{"$nulls":5},{"$f":"IFERROR(AlgemeenEnAdministratief[[#This Row],[Huidige periode]]/SUBTOTAL(109,Verkoopinkomsten[Huidige periode]),0)","v":0},{"$f":"IFERROR(AlgemeenEnAdministratief[[#This Row],[Huidige periode]]/AlgemeenEnAdministratief[[#This Row],[Vorige periode]]-1,0)","v":0},{"$f":"IFERROR(AlgemeenEnAdministratief[[#This Row],[Huidige periode]]/AlgemeenEnAdministratief[[#This Row],[Budget]]-1,0)","v":0}]
[null,"Afschrijving",{"$nulls":5},{"$f":"IFERROR(AlgemeenEnAdministratief[[#This Row],[Huidige periode]]/SUBTOTAL(109,Verkoopinkomsten[Huidige periode]),0)","v":0},{"$f":"IFERROR(AlgemeenEnAdministratief[[#This Row],[Huidige periode]]/AlgemeenEnAdministratief[[#This Row],[Vorige periode]]-1,0)","v":0},{"$f":"IFERROR(AlgemeenEnAdministratief[[#This Row],[Huidige periode]]/AlgemeenEnAdministratief[[#This Row],[Budget]]-1,0)","v":0}]
[null,"Verzekeringen",{"$nulls":5},{"$f":"IFERROR(AlgemeenEnAdministratief[[#This Row],[Huidige periode]]/SUBTOTAL(109,Verkoopinkomsten[Huidige periode]),0)","v":0},{"$f":"IFERROR(AlgemeenEnAdministratief[[#This Row],[Huidige periode]]/AlgemeenEnAdministratief[[#This Row],[Vorige periode]]-1,0)","v":0},{"$f":"IFERROR(AlgemeenEnAdministratief[[#This Row],[Huidige periode]]/AlgemeenEnAdministratief[[#This Row],[Budget]]-1,0)","v":0}]
[null,"Reparatie en onderhoud",{"$nulls":5},{"$f":"IFERROR(AlgemeenEnAdministratief[[#This Row],[Huidige periode]]/SUBTOTAL(109,Verkoopinkomsten[Huidige periode]),0)","v":0},{"$f":"IFERROR(AlgemeenEnAdministratief[[#This Row],[Huidige periode]]/AlgemeenEnAdministratief[[#This Row],[Vorige periode]]-1,0)","v":0},{"$f":"IFERROR(AlgemeenEnAdministratief[[#This Row],[Huidige periode]]/AlgemeenEnAdministratief[[#This Row],[Budget]]-1,0)","v":0}]
[null,"Overige uitgaven (specificeren)",{"$nulls":5},{"$f":"IFERROR(AlgemeenEnAdministratief[[#This Row],[Huidige periode]]/SUBTOTAL(109,Verkoopinkomsten[Huidige periode]),0)","v":0},{"$f":"IFERROR(AlgemeenEnAdministratief[[#This Row],[Huidige periode]]/AlgemeenEnAdministratief[[#This Row],[Vorige periode]]-1,0)","v":0},{"$f":"IFERROR(AlgemeenEnAdministratief[[#This Row],[Huidige periode]]/AlgemeenEnAdministratief[[#This Row],[Budget]]-1,0)","v":0}]
[null,"Totaal",null,{"$f":"SUBTOTAL(109,AlgemeenEnAdministratief[Vorige periode])","v":0},{"$f":"SUBTOTAL(109,AlgemeenEnAdministratief[Budget])","v":56},{"$f":"SUBTOTAL(109,AlgemeenEnAdministratief[Huidige periode])","v":51},null,{"$f":"IFERROR(AlgemeenEnAdministratief[[#Totals],[Huidige periode]]/SUBTOTAL(109,Verkoopinkomsten[Huidige periode]),0)","v":{"v":1.1333333333333333,"d":"113.3%"}},{"$f":"IFERROR(AlgemeenEnAdministratief[[#Totals],[Huidige periode]]/AlgemeenEnAdministratief[[#Totals],[Vorige periode]]-1,0)","v":0},{"$f":"IFERROR(AlgemeenEnAdministratief[[#Totals],[Huidige periode]]/AlgemeenEnAdministratief[[#Totals],[Budget]]-1,0)","v":{"v":-0.0892857142857143,"d":"-8.9%"}}]
[]
[null,"Bedrijfsuitgaven: overig"]
[null,"Overige bedrijfsuitgaven 1",null,null,10,null,null,{"$f":"IFERROR(AndereUitgavencategorieBedrijfsvoering[[#This Row],[Huidige periode]]/SUBTOTAL(109,Verkoopinkomsten[Huidige periode]),0)","v":0},{"$f":"IFERROR(AndereUitgavencategorieBedrijfsvoering[[#This Row],[Huidige periode]]/AndereUitgavencategorieBedrijfsvoering[[#This Row],[Vorige periode]]-1,0)","v":0},{"$f":"IFERROR(AndereUitgavencategorieBedrijfsvoering[[#This Row],[Huidige periode]]/AndereUitgavencategorieBedrijfsvoering[[#This Row],[Budget]]-1,0)","v":{"v":-1,"d":"-100.0%"}}]
[null,"Overige bedrijfsuitgaven 2",{"$nulls":5},{"$f":"IFERROR(AndereUitgavencategorieBedrijfsvoering[[#This Row],[Huidige periode]]/SUBTOTAL(109,Verkoopinkomsten[Huidige periode]),0)","v":0},{"$f":"IFERROR(AndereUitgavencategorieBedrijfsvoering[[#This Row],[Huidige periode]]/AndereUitgavencategorieBedrijfsvoering[[#This Row],[Vorige periode]]-1,0)","v":0},{"$f":"IFERROR(AndereUitgavencategorieBedrijfsvoering[[#This Row],[Huidige periode]]/AndereUitgavencategorieBedrijfsvoering[[#This Row],[Budget]]-1,0)","v":0}]
[null,"Totaal",null,{"$f":"SUBTOTAL(109,AndereUitgavencategorieBedrijfsvoering[Vorige periode])","v":0},{"$f":"SUBTOTAL(109,AndereUitgavencategorieBedrijfsvoering[Budget])","v":10},{"$f":"SUBTOTAL(109,AndereUitgavencategorieBedrijfsvoering[Huidige periode])","v":0},null,{"$f":"IFERROR(AndereUitgavencategorieBedrijfsvoering[[#Totals],[Huidige periode]]/SUBTOTAL(109,Verkoopinkomsten[Huidige periode]),0)","v":0},{"$f":"IFERROR(AndereUitgavencategorieBedrijfsvoering[[#Totals],[Huidige periode]]/AndereUitgavencategorieBedrijfsvoering[[#Totals],[Vorige periode]]-1,0)","v":0},{"$f":"SUBTOTAL(109,AndereUitgavencategorieBedrijfsvoering[% afwijking van budget])","v":{"v":-1,"d":"-100.0%"}}]
[]
[null,"Totale bedrijfsuitgaven",null,{"$f":"SUM(VerkoopEnMarketing[Vorige periode],AlgemeenEnAdministratief[Vorige periode],AndereUitgavencategorieBedrijfsvoering[Vorige periode])","v":0},{"$f":"SUM(VerkoopEnMarketing[Budget],AlgemeenEnAdministratief[Budget],AndereUitgavencategorieBedrijfsvoering[Budget])","v":88},{"$f":"SUM(VerkoopEnMarketing[Huidige periode],AlgemeenEnAdministratief[Huidige periode],AndereUitgavencategorieBedrijfsvoering[Huidige periode])","v":70},null,{"$f":"IFERROR(F45/SUBTOTAL(109,Verkoopinkomsten[Huidige periode]),0)","v":{"v":1.5555555555555556,"d":"155.6%"}},{"$f":"IFERROR(F45/D45-1,0)","v":0},{"$f":"IFERROR(F45/E45-1,0)","v":{"v":-0.20454545454545459,"d":"-20.5%"}}]
[]
[null,"Inkomsten uit onderneming",null,{"$f":"D18-D45","v":40},{"$f":"E18-E45","v":-45},{"$f":"F18-F45","v":-32},null,{"$f":"IFERROR(F47/SUBTOTAL(109,Verkoopinkomsten[Huidige periode]),0)","v":{"v":-0.7111111111111111,"d":"-71.1%"}},{"$f":"IFERROR(IF(D47=F47,0,IF(F47>D47,ABS((F47/D47)-1),IF(AND(F47<D47,D47<0),-((F47/D47)-1),(F47/D47)-1))),0)","v":{"v":-1.8,"d":"-180.0%"}},{"$f":"IFERROR(IF(E47=F47,0,IF(F47>E47,ABS((F47/E47)-1),IF(AND(F47<E47,E47<0),-((F47/E47)-1),(F47/E47)-1))),0)","v":{"v":0.28888888888888886,"d":"28.9%"}}]
[]
[null,"Overige inkomsten",{"$nulls":5},{"$f":"IFERROR(F49/SUBTOTAL(109,Verkoopinkomsten[Huidige periode]),0)","v":0},{"$f":"IFERROR(F49/D49-1,0)","v":0},{"$f":"IFERROR(F49/E49-1,0)","v":0}]
[]
[null,"Belasting"]
[null,"Inkomstenbelasting",null,null,32,30,null,{"$f":"IFERROR(Belasting[[#This Row],[Huidige periode]]/SUBTOTAL(109,Verkoopinkomsten[Huidige periode]),0)","v":{"v":0.6666666666666666,"d":"66.7%"}},{"$f":"IFERROR(Belasting[[#This Row],[Huidige periode]]/Belasting[[#This Row],[Vorige periode]]-1,0)","v":0},{"$f":"IFERROR(Belasting[[#This Row],[Huidige periode]]/Belasting[[#This Row],[Budget]]-1,0)","v":{"v":-0.0625,"d":"-6.3%"}}]
[null,"Loonbelasting",{"$nulls":5},{"$f":"IFERROR(Belasting[[#This Row],[Huidige periode]]/SUBTOTAL(109,Verkoopinkomsten[Huidige periode]),0)","v":0},{"$f":"IFERROR(Belasting[[#This Row],[Huidige periode]]/Belasting[[#This Row],[Vorige periode]]-1,0)","v":0},{"$f":"IFERROR(Belasting[[#This Row],[Huidige periode]]/Belasting[[#This Row],[Budget]]-1,0)","v":0}]
[null,"Onroerendgoedbelasting",{"$nulls":5},{"$f":"IFERROR(Belasting[[#This Row],[Huidige periode]]/SUBTOTAL(109,Verkoopinkomsten[Huidige periode]),0)","v":0},{"$f":"IFERROR(Belasting[[#This Row],[Huidige periode]]/Belasting[[#This Row],[Vorige periode]]-1,0)","v":0},{"$f":"IFERROR(Belasting[[#This Row],[Huidige periode]]/Belasting[[#This Row],[Budget]]-1,0)","v":0}]
[null,"Overige belastingen (specificeren)",{"$nulls":5},{"$f":"IFERROR(Belasting[[#This Row],[Huidige periode]]/SUBTOTAL(109,Verkoopinkomsten[Huidige periode]),0)","v":0},{"$f":"IFERROR(Belasting[[#This Row],[Huidige periode]]/Belasting[[#This Row],[Vorige periode]]-1,0)","v":0},{"$f":"IFERROR(Belasting[[#This Row],[Huidige periode]]/Belasting[[#This Row],[Budget]]-1,0)","v":0}]
[null,"Totaal",null,{"$f":"SUBTOTAL(109,Belasting[Vorige periode])","v":0},{"$f":"SUBTOTAL(109,Belasting[Budget])","v":32},{"$f":"SUBTOTAL(109,Belasting[Huidige periode])","v":30},null,{"$f":"IFERROR(Belasting[[#Totals],[Huidige periode]]/SUBTOTAL(109,Verkoopinkomsten[Huidige periode]),0)","v":{"v":0.6666666666666666,"d":"66.7%"}},{"$f":"IFERROR(Belasting[[#Totals],[Huidige periode]]/Belasting[[#Totals],[Vorige periode]]-1,0)","v":0},{"$f":"IFERROR(Belasting[[#Totals],[Huidige periode]]/Belasting[[#Totals],[Budget]]-1,0)","v":{"v":-0.0625,"d":"-6.3%"}}]
[]
[null,"Nettowinst",null,{"$f":"D47+D49-Belasting[[#Totals],[Vorige periode]]","v":40},{"$f":"E47+E49-Belasting[[#Totals],[Vorige periode]]","v":-45},{"$f":"F47+F49-Belasting[[#Totals],[Vorige periode]]","v":-32},null,{"$f":"IFERROR(F58/SUBTOTAL(109,Verkoopinkomsten[Huidige periode]),0)","v":{"v":-0.7111111111111111,"d":"-71.1%"}},{"$f":"IFERROR(IF(D58=F58,0,IF(F58>D58,ABS((F58/D58)-1),IF(AND(F58<D58,D58<0),-((F58/D58)-1),(F58/D58)-1))),0)","v":{"v":-1.8,"d":"-180.0%"}},{"$f":"IFERROR(IF(E58=F58,0,IF(F58>E58,ABS((F58/E58)-1),IF(AND(F58<E58,E58<0),-((F58/E58)-1),(F58/E58)-1))),0)","v":{"v":0.28888888888888886,"d":"28.9%"}}]
[null,"Brutowinst",null,{"$f":"D18/SUM(Verkoopinkomsten[Vorige periode])","v":{"v":1,"d":"100.0%"}},{"$f":"E18/SUM(Verkoopinkomsten[Budget])","v":{"v":0.86,"d":"86.0%"}},{"$f":"F18/SUM(Verkoopinkomsten[Huidige periode])","v":{"v":0.8444444444444444,"d":"84.4%"}}]
[null,"Rendement op omzet",null,{"$f":"D58/SUM(Verkoopinkomsten[Vorige periode])","v":{"v":1,"d":"100.0%"}},{"$f":"E58/SUM(Verkoopinkomsten[Budget])","v":{"v":-0.9,"d":"-90.0%"}},{"$f":"F58/SUM(Verkoopinkomsten[Huidige periode])","v":{"v":-0.7111111111111111,"d":"-71.1%"}}]